Cogmind - Beta 15 X1 @@@ ROGUE MODE // 2024.11.20 @ 06:41:44 Player: arkn Result: Destroyed by P-70 Sage with High-powered Shock Rifle Performance ------------- Evolutions (5) 2500 Regions Visited (6) 1200 Robots Destroyed (34) 170 Value Destroyed (1404) 1404 Prototype IDs (12) 240 Alien Tech Used (0) 0 Bonus (300) 300 TOTAL SCORE: 5814 Bonus ------- Registered with UFD 300 Cogmind --------- Core Integrity 0/1000 Matter 44/300 Energy 67/100 System Corruption 26% Temperature Cool (0) Movement Core (50) Location -5/Factory Parts ------- > --- POWER (1) -------- (None) > --- PROPULSION (6) --- (None) > --- UTILITY (5) ------ (None) > --- WEAPON (5) ------- (None) > --- INVENTORY (5) ---- Thunder Leg Improved Trap Scanner Spectral Analyzer Improved Transmission Jammer Improved Field Recycling Unit (0) Peak State ------------ > --- POWER ------------ Neutrino Core > --- PROPULSION ------- Improved Medium Treads Armored Medium Treads Gravmag Array Gravmag Array > --- UTILITY ---------- High-capacity Storage Unit Improved Trap Scanner Improved Transmission Jammer Improved Focal Shield A0-MCA's Component Scanner > --- WEAPON ----------- Wave Gun KE Penetrator Hypervelocity Coil Gun Enhanced Gauss Cannon Power Sword > --- INVENTORY -------- Micro Fission Core Improved Treads Improved Treads Thunder Leg Armored Huge Wheel Large Storage Unit Structural Scanner Spectral Analyzer Seismic Detector Improved Transmission Jammer Advanced ECM Suite Phase Shifter Advanced Shield Generator Improved Field Recycling Unit Scrapoid Pod Wave Gun Improved Remote Datajack DRS Beacon [Rating: 102] Favorites ----------- Power Fission Core Engine Ion Engine Power Core Fission Core Reactor Light Antimatter Reactor Propulsion Armored Huge Wheel Treads Armored Medium Treads Leg Aluminum Leg Wheel Armored Huge Wheel Hover Unit Gravmag Array Utility A0-MCA's Component Scanner Device Seismic Detector Storage Large Storage Unit Processor A0-MCA's Component Scanner Protection Improved Medium Armor Plating Weapon Makeshift Laser Energy Gun Makeshift Laser Ballistic Gun KE Penetrator Ballistic Cannon Gauss Cannon Launcher Grenade Launcher Special Weapon Improved Remote Datajack Slashing Weapon Power Sword Special Melee Weapon Improved Datajack Build | -11 -10 -10 -7 -5 -5 -5 ------- Run | Yrd Mat Sub Scr Fac Was Fac Slots Evolved 10 | . . . . 10 . . Power . | . . . . . . . Propulsion 4 | . . . . 4 . . Utility 3 | . . . . 3 . . Weapon 3 | . . . . 3 . . Parts Attached 63 | 1 1 4 8 23 1 25 Power 6 | . . . 1 1 . 4 Engine 1 | . . . . . . 1 Core 4 | . . . 1 1 . 2 Reactor 1 | . . . . . . 1 Propulsion 12 | . . . 3 3 . 6 Treads 6 | . . . 2 . . 4 Leg 3 | . . . . 3 . . Wheel 1 | . . . 1 . . . Hover 2 | . . . . . . 2 Flight . | . . . . . . . Utility 23 | 1 . 1 3 9 1 8 Device 16 | 1 . . . 8 1 6 Storage 2 | . . . 1 . . 1 Processor 2 | . . . 1 . . 1 Hackware . | . . . . . . . Protection 3 | . . 1 1 1 . . Artifact . | . . . . . . . Weapon 22 | . 1 3 1 10 . 7 Energy Gun 3 | . . 1 . . . 2 Energy Cannon . | . . . . . . . Ballistic Gun 8 | . 1 1 . 4 . 2 Ballistic Cannon 5 | . . . 1 2 . 2 Launcher 1 | . . 1 . . . . Special Weapon 2 | . . . . 2 . . Impact Weapon . | . . . . . . . Slashing Weapon 2 | . . . . 1 . 1 Piercing Weapon . | . . . . . . . Special Melee Weapon 1 | . . . . 1 . . Unidentified Prototypes . | . . . . . . . Parts Lost 27 | . . . . . 4 23 Power 5 | . . . . . 1 4 Propulsion 6 | . . . . . . 6 Utility 7 | . . . . . . 7 Weapon 9 | . . . . . 3 6 Highest Loss Streak 18 | . . . . . 4 18 To Critical Strikes . | . . . . . . . Average Backups 10 | 6 7 5 7 12 12 14 Power . | 1 1 . . . . . Propulsion 1 | 4 3 2 . . . 2 Utility 6 | . 1 1 3 9 9 9 Weapon 1 | 1 1 2 2 1 1 . Tool/Special . | . . . . . . . Unused Backups 25 | 6 2 2 6 2 . 7 Power 2 | 1 . 1 . . . . Propulsion 6 | 2 2 . 1 . . 1 Utility 11 | 1 . 1 3 . . 6 Weapon 6 | 2 . . 2 2 . . Tool/Special . | . . . . . . . Average Slot Usage (%) 82 | . 100 100 91 80 59 64 Engine 1 | . 14 14 1 . . . Core 7 | . . . 12 5 2 1 Treads 2 | . . . 1 . . 9 Leg 8 | . 28 28 9 9 9 . Wheel 5 | . . . 8 5 5 1 Hover 1 | . . . . . . 6 Device 11 | . 14 12 8 13 8 13 Storage 5 | . 14 2 5 5 5 4 Processor 5 | . . . 6 5 5 5 Protection 4 | . . 13 7 3 2 . Energy Gun 7 | . 10 6 14 2 . 1 Ballistic Gun 8 | . 17 21 6 10 13 5 Ballistic Cannon 6 | . . . 7 9 . 3 Slashing Weapon 1 | . . . . . 2 3 Peak Build Rating 102 | 7 8 11 37 89 88 102 Average Rating 48 | 6 7 9 26 75 57 71 On Entrance 26 | 6 7 8 11 37 88 26 Naked Turns 17 | . . . . . . 17 Heaviest Build 93 | 14 14 18 39 67 58 93 Greatest Support 103 | 20 20 20 38 28 28 103 Greatest Overweight (x) 2 | . . . 1 2 2 2 Average Overweight (x) . | . . . . 1 . . Largest Inventory Capacity 20 | 8 8 8 15 15 15 20 Average Capacity 12 | 8 8 5 9 15 15 18 Most Carried 20 | 6 8 8 15 15 15 20 Average Carried 11 | 6 7 5 8 14 14 16 Final Capacity 15 | 8 8 5 15 15 15 5 Final Carried 15 | 6 8 5 15 15 14 5 Class Distribution -------------------- 56% | Mutant 22% | Tank 12% | Derelict-Tank 3% | Derelict-Mutant Dominant Class ---------------- Mutant | -10/Materials Mutant | -10/Subcaves Mutant | -7/Scraptown Tank | -5/Factory Mutant | -5/Waste Mutant | -5/Factory Resources | -11 -10 -10 -7 -5 -5 -5 ----------- Run | Yrd Mat Sub Scr Fac Was Fac Matter Collected 2149 | 221 10 50 146 948 . 774 Remotely 692 | . . . . 692 . . Salvage Created 1592 | 81 . . . 618 . 893 Parts 72 | 5 . . . 25 . 42 Haulers Intercepted 1 | . . . . 1 . . Recyclers Shooed 1 | . . . . . . 1 Parts Field Recycled . | . . . . . . . Retrieved Matter . | . . . . . . . Parts Self-Destructed . | . . . . . . . Prevented . | . . . . . . . Kills | -11 -10 -10 -7 -5 -5 -5 ------- Run | Yrd Mat Sub Scr Fac Was Fac Combat Hostiles Destroyed 22 | . . . . 11 . 11 Melee 4 | . . . . . . 4 Guns 10 | . . . . 7 . 3 Cannons 7 | . . . . 3 . 4 AOE 1 | . . . . 1 . . Classes Destroyed 12 | 2 . . . 9 . 1 Worker 1 | . . . . 1 . . Builder 2 | . . . . 2 . . Tunneler 3 | 1 . . . . . 2 Hauler 1 | . . . . 1 . . Recycler 2 | 1 . . . . . 1 Mechanic 1 | . . . . 1 . . Operator 1 | . . . . 1 . . Watcher 1 | . . . . 1 . . Swarmer 4 | . . . . 4 . . Grunt 7 | . . . . . . 7 Sentry 4 | . . . . 2 . 2 Programmer 7 | . . . . 5 . 2 Best Kill Streak 5 | 1 . . . 5 . 3 Combat Bots Only 4 | . . . . 4 . 3 Max Kills in Single Turn 2 | 1 . . . 2 . 1 Gunslinging . | . . . . . . . Exploded 1 | . . . . 1 . . Melee 1 | . . . . . . 1 Uniques/NPCs Destroyed . | . . . . . . . Combat | -11 -10 -10 -7 -5 -5 -5 -------- Run | Yrd Mat Sub Scr Fac Was Fac Hostile Shots Fired 332 | . . . . 75 5 252 Missed 80 | . . . . 19 . 61 Damage Taken 5088 | . . . . 1036 220 3832 Core 1001 | . . . . 84 130 787 Absorbed by Shields 361 | . . . . 266 . 95 Ignored by Resistances 161 | . . . . . . 161 Core Remaining (%) 100 | 100 . . 100 . . . Volleys Fired 96 | 11 . 8 . 41 5 31 Largest 4 | 2 . 2 . 4 4 4 Hottest 196 | 60 . 70 . 164 126 196 Shots Fired 256 | 22 . 10 . 134 16 74 Gun 194 | 22 . 6 . 101 16 49 Cannon 56 | . . . . 31 . 25 Launcher 4 | . . 4 . . . . Special 2 | . . . . 2 . . Kinetic 217 | 11 . 2 . 130 16 58 Thermal 22 | . . 4 . 2 . 16 Explosive 4 | . . 4 . . . . Electromagnetic 11 | 11 . . . . . . Robot Hit Streak 17 | 4 . 2 . 13 12 17 Robot Miss Streak 4 | 2 . 1 . 4 2 3 Penetration Max 1 | . . . . 1 . 1 Secondary Targets . | . . . . . . . Shots Hit Robots 188 | 10 . 1 . 91 13 73 Core Hits 65 | 3 . . . 25 3 34 Critical Kills 3 | . . . . . . 3 Critical Parts Destroyed 5 | . . . . 1 . 4 Critical Strikes 16 | . . . . 3 . 13 Burn 2 | . . . . . . 2 Destroy 9 | . . . . 2 . 7 Blast 3 | . . . . 1 . 2 Sever 2 | . . . . . . 2 Melee Attacks 34 | . . . . 5 . 29 Impact . | . . . . . . . Slashing 32 | . . . . 3 . 29 Piercing . | . . . . . . . Sneak Attacks 6 | . . . . 3 . 3 Combat Hostiles . | . . . . . . . Follow-up Attacks . | . . . . . . . Damage Inflicted 5409 | 145 . 48 . 2533 291 2392 Guns 2965 | 95 . . . 1641 291 938 Cannons 1148 | . . . . 695 . 453 Explosions 227 | 50 . 48 . 129 . . Melee 1069 | . . . . 68 . 1001 Ramming . | . . . . . . . Kinetic 3623 | 31 . . . 2315 291 986 Thermal 476 | 50 . . . 21 . 405 Explosive 177 | . . 48 . 129 . . Electromagnetic 64 | 64 . . . . . . Impact . | . . . . . . . Slashing 1069 | . . . . 68 . 1001 Piercing . | . . . . . . . Highest Corruption 26 | . . . . 8 21 26 Average Corruption 13 | . . . . 5 14 21 Corruption Purged . | . . . . . . . Corruption Blocked . | . . . . . . . Effects 106 | . . . . 36 7 63 Message Errors 15 | . . . . 5 . 10 Matter Fused 20 | . . . . 8 1 11 Heat Flow Errors 12 | . . . . 4 1 7 Energy Discharges 15 | . . . . 3 1 11 Parts Rejected 2 | . . . . 1 . 1 Parts Fused 1 | . . . . . . 1 Data Loss (minor) 16 | . . . . 5 2 9 Data Loss (major) 5 | . . . . 4 . 1 Misfires 5 | . . . . 2 . 3 Alerts 3 | . . . . 1 . 2 Misdirections 2 | . . . . . 2 . Weapon Failures 10 | . . . . 3 . 7 Overload Shots . | . . . . . . . Overflow Damage 79 | . . 8 . 71 . . Projectiles 71 | . . . . 71 . . Explosions 8 | . . 8 . . . . Melee . | . . . . . . . Knockbacks 16 | . . . . 9 . 7 Impact . | . . . . . . . Kinetic 13 | . . . . 8 . 5 Secondary 3 | . . . . 1 . 2 Self-Inflicted Damage . | . . . . . . . Shots . | . . . . . . . Rammed . | . . . . . . . Targets Rammed . | . . . . . . . Kicked . | . . . . . . . Crushed . | . . . . . . . Highest Temperature 389 | 40 . . . 249 173 389 Average Temperature 84 | 17 . . . 66 87 113 Received Heat Transfer 1262 | . . . . 90 . 1172 Siege Activations . | . . . . . . . Martial Activations . | . . . . . . . Shielding Activations . | . . . . . . . Robots Disrupted . | . . . . . . . Combat Hostiles . | . . . . . . . Robots Corrupted . | . . . . . . . Combat Hostiles . | . . . . . . . Parts Fried . | . . . . . . . Impact Corruptions . | . . . . . . . Robots Melted . | . . . . . . . Combat Hostiles . | . . . . . . . Parts Melted . | . . . . . . . Heat Transferred 840 | 100 . . . 37 . 703 Parts Sabotaged . | . . . . . . . Parts Stolen . | . . . . . . . Parts Stripped . | . . . . . . . Power Chain Reactions 1 | 1 . . . . . . Alert | -11 -10 -10 -7 -5 -5 -5 ------- Run | Yrd Mat Sub Scr Fac Was Fac Maximum Alert Level 1 | . . . . 1 . . Low Security (%) 98 | 100 100 . . 96 100 100 Level 1 1 | . . . . 3 . . Level 2 . | . . . . . . . Level 3 . | . . . . . . . Level 4 . | . . . . . . . Level 5 . | . . . . . . . High Security . | . . . . . . . Max Security . | . . . . . . . Peak Influence 208 | 5 15 . . 208 62 173 Initial 62 | . . . . . 62 . Average 48 | 1 1 . . 64 25 36 Influence Increases 874 | 10 15 . . 473 . 376 Destroy 0b10 Robot/C 440 | . . . . 220 . 220 Destroy 0b10 Robot/NC 55 | 10 . . . 30 . 15 Destroy Leader 114 | . . . . 64 . 50 Successful Hack 18 | . . . . 18 . . Disable Machine 60 | . . . . 30 . 30 Destroy Structure 82 | . . . . 66 . 16 Lose Combat Pursuer 105 | . 15 . . 45 . 45 Influence Decreases 757 | 10 15 . . 294 62 376 Time Decay 575 | 10 15 . . 284 30 236 Lost Part 172 | . . . . . 32 140 Lost Ally 10 | . . . . 10 . . Squads Dispatched 7 | . 1 . . 2 . 4 Investigation . | . . . . . . . Extermination 3 | . . . . 1 . 2 Reinforcement 4 | . 1 . . 1 . 2 Assault . | . . . . . . . Garrison . | . . . . . . . Intercept . | . . . . . . . Searches Triggered . | . . . . . . . Construction Impeded 1 | . . . . . . 1 Haulers Reinforced . | . . . . . . . Active Scanning Responses . | . . . . . . . Cargo Convoy Interrupts . | . . . . . . . Stealth | -11 -10 -10 -7 -5 -5 -5 --------- Run | Yrd Mat Sub Scr Fac Was Fac Distress Signals 2 | . 1 . . . . 1 Communications Jammed 1 | . . . . . . 1 Distress Signals 1 | . . . . . . 1 Times Spotted 44 | . 1 . . 22 6 15 Peak Tracking Total 8 | . 3 . . 4 6 8 Tactical Retreats 5 | . 1 . . 2 . 2 Traps | -11 -10 -10 -7 -5 -5 -5 ------- Run | Yrd Mat Sub Scr Fac Was Fac Traps Triggered 2 | . . . . 2 . . Indirectly . | . . . . . . . Trap Hack Attempts . | . . . . . . . Triggered . | . . . . . . . Disarmed . | . . . . . . . Reprogrammed . | . . . . . . . Reused . | . . . . . . . Traps Extracted . | . . . . . . . Installed . | . . . . . . . Triggered . | . . . . . . . Machines | -11 -10 -10 -7 -5 -5 -5 ---------- Run | Yrd Mat Sub Scr Fac Was Fac Machines Disabled 4 | . . . . 2 . 2 Max in Single Turn 2 | . . . . 2 . 1 Garrison Access 1 | . . . . 1 . . Machines Repaired . | . . . . . . . Machines Dismantled . | . . . . . . . Machines Sabotaged . | . . . . . . . Overloaded Fab Kills . | . . . . . . . Hacking | -11 -10 -10 -7 -5 -5 -5 --------- Run | Yrd Mat Sub Scr Fac Was Fac Machines Accessed 14 | . 1 . 7 4 . 2 Terminals 5 | . 1 . . 2 . 2 Fabricators . | . . . . . . . Repair Stations . | . . . . . . . Recycling Units . | . . . . . . . Scanalyzers . | . . . . . . . Garrison Access 2 | . . . . 2 . . Total Hacks 65 | . 2 . 44 16 . 3 Successful 50 | . . . 44 6 . . Failed 15 | . 2 . . 10 . 3 Catastrophic 1 | . . . . 1 . . Database Lockouts . | . . . . . . . Manual 16 | . 2 . . 11 . 3 Terminals 13 | . 2 . . 8 . 3 Fabricators . | . . . . . . . Repair Stations . | . . . . . . . Recycling Units . | . . . . . . . Scanalyzers . | . . . . . . . Garrison Access 8 | . . . . 8 . . Terminal Hacks 45 | . . . 44 1 . . Record 44 | . . . 44 . . . Terminal Index 1 | . . . . 1 . . Fabricator Hacks . | . . . . . . . Repair Station Hacks . | . . . . . . . Recycling Unit Hacks . | . . . . . . . Scanalyzer . | . . . . . . . Garrison Access Hacks 1 | . . . . 1 . . Seal Access 1 | . . . . 1 . . Unauthorized Hacks 4 | . . . . 4 . . Terminals 2 | . . . . 2 . . Botnet 1 | . . . . 1 . . Skim 1 | . . . . 1 . . Fabricators . | . . . . . . . Repair Stations . | . . . . . . . Recycling Units . | . . . . . . . Scanalyzers . | . . . . . . . Garrison Access 2 | . . . . 2 . . Broadcast 1 | . . . . 1 . . Watchers 1 | . . . . 1 . . Data Cores Recovered . | . . . . . . . Used . | . . . . . . . Hacking Detections 7 | . 1 . . 4 . 2 Full Trace Events . | . . . . . . . Feedback Events . | . . . . . . . Feedback Blocked . | . . . . . . . Robot Schematics Acquired . | . . . . . . . Robots Built . | . . . . . . . Authchips . | . . . . . . . Time . | . . . . . . . Total Robot Build Rating . | . . . . . . . Part Schematics Acquired . | . . . . . . . Parts Built . | . . . . . . . Authchips . | . . . . . . . Time . | . . . . . . . Total Part Build Rating . | . . . . . . . Parts Repaired . | . . . . . . . Time . | . . . . . . . Parts Recycled . | . . . . . . . Recycled Matter . | . . . . . . . Retrieved Matter . | . . . . . . . Retrieved Components . | . . . . . . . Parts Scanalyzed . | . . . . . . . Part Schematics Acquired . | . . . . . . . Parts Damaged . | . . . . . . . Bothacking | -11 -10 -10 -7 -5 -5 -5 ------------ Run | Yrd Mat Sub Scr Fac Was Fac Used RIF Installer . | . . . . . . . Robots Hacked 3 | . . . . 3 . . Non-combat 1 | . . . . 1 . . Combat . | . . . . . . . Robot Hacks Applied 1 | . . . . 1 . . parse_system 1 | . . . . 1 . . Manual 2 | . . . . 2 . . Relay Couplers Released 3 | . . . . 3 . . Programmers 3 | . . . . 3 . . Fabnet Peak Effective % . | . . . . . . . Robots Rewired . | . . . . . . . Allies Hacked . | . . . . . . . Hacks Repelled . | . . . . . . . Allies | -11 -10 -10 -7 -5 -5 -5 -------- Run | Yrd Mat Sub Scr Fac Was Fac Total Allies 2 | . . . . 2 . . Largest Group 2 | . . . . 2 . . Highest-Rated Group 33 | . . . . 33 . . Highest-Rated Ally 26 | . . . . 26 . . Total Orders . | . . . . . . . Ally Attacks . | . . . . . . . Total Damage . | . . . . . . . Kills . | . . . . . . . Allies Corrupted . | . . . . . . . Allies Melted . | . . . . . . . Intel | -11 -10 -10 -7 -5 -5 -5 ------- Run | Yrd Mat Sub Scr Fac Was Fac Active Infowar (turns) 3804 | 15 114 243 1390 1102 51 889 Structural 67 | . . . . 59 . 8 Traps 1196 | . . . . 598 . 598 Seismic 3008 | 15 114 243 1390 664 44 538 Jamming 810 | . . . . 444 7 359 Robot Analysis Total . | . . . . . . . Derelict Logs Recovered . | . . . . . . . Drone Launches . | . . . . . . . Drone Recoveries . | . . . . . . . Exploration | -11 -10 -10 -7 -5 -5 -5 ------------- Run | Yrd Mat Sub Scr Fac Was Fac Turns Passed 5689 | 70 114 269 2326 1557 118 1235 Spaces Moved 3917 | 31 88 163 1967 1001 90 577 Core 34 | . . . . . . 34 Treads 369 | . . . 99 . . 270 Legs 953 | 31 88 163 671 . . . Wheels 2380 | . . . 1197 1001 90 92 Hover 181 | . . . . . . 181 Flight . | . . . . . . . Fastest Speed 50 | 120 120 120 100 115 100 50 Average Speed 124 | 120 120 120 115 128 111 154 Slowest Speed 330 | 120 120 120 240 130 130 330 Overloaded Moves . | . . . . . . . Propulsion Burnouts . | . . . . . . . Robots Hopped . | . . . . . . . Cave-ins Triggered . | . . . . . . . Exploration Rate (%) 36 | 3 23 6 93 28 89 13 Regions Visited 6 Branch Regions 2 Pre-discovered Areas . | . . . . . . . Known Exits Taken . | . . . . . . . Unknown Exits Taken 4 | 1 1 1 1 . . . Scrap Searched 6 | . . 2 4 . . . Spaces Dug 3 | . . . . 2 . 1 Terrain Destroyed 75 | 2 . 33 . 34 . 6 Melee 3 | . . . . 2 . 1 Projectile 17 | . . . . 13 . 4 AOE 54 | 2 . 33 . 19 . . Terrain Rammed . | . . . . . . . Walls Destroyed . | . . . . . . . Machines Disabled . | . . . . . . . Actions | -11 -10 -10 -7 -5 -5 -5 --------- Run | Yrd Mat Sub Scr Fac Was Fac Total 4484 | 43 97 226 2023 1178 98 819 Wait 242 | 1 3 41 13 76 . 108 Move 3912 | 30 87 162 1966 1001 89 577 Hop . | . . . . . . . Pick Up 55 | . 4 2 20 10 1 18 Fast Attach 23 | 1 . 1 4 7 . 10 Attach 30 | . . 1 . 7 2 20 Detach 5 | . . . . . . 5 Swap 40 | . 1 5 4 18 . 12 Drop 47 | . 2 6 16 13 1 9 Fire 96 | 11 . 8 . 41 5 31 Melee 34 | . . . . 5 . 29 Ram . | . . . . . . . Kick . | . . . . . . . Crush . | . . . . . . . Escape Stasis . | . . . . . . . Rewire . | . . . . . . . Trap . | . . . . . . . Miscellaneous . | . . . . . . . Route ------- -11/Scrapyard -10/Materials -10/Subcaves (discovered 2 exits: [*Mat] / *Scr) -7/Scraptown (discovered 2 exits: *Fac x2) -5/Factory (discovered 2 exits: [*Upp x2]) -5/Waste -5/Factory History --------- Turn | Location | Event 10 | -11/Scrapyard | Discovered new exit (range 2) 71 | -11/Scrapyard | Entered Materials 72 | -10/Materials | Met a group of wandering Federalists 178 | -10/Materials | Discovered new exit (range 7) 185 | -10/Materials | Entered Subcaves 185 | -10/Subcaves | Discovered new exit (range 12) 186 | -10/Subcaves | Continued accompanying wandering Federalists (4) 312 | -10/Subcaves | Build established: Mutant 441 | -10/Subcaves | Wandering Federalist uncovered a shortcut to Scraptown 454 | -10/Subcaves | Entered Scraptown 850 | -7/Scraptown | Discovered new exit (range 5) 956 | -7/Scraptown | Visited Cyclists 1045 | -7/Scraptown | Visited Fellowship of the Rings 1093 | -7/Scraptown | Visited CR-KLE's Repair Center 1118 | -7/Scraptown | Visited UFD Registry 1118 | -7/Scraptown | Registered with UFD as "Zerocoil" 1213 | -7/Scraptown | Entered Cyclist Reading Room 1249 | -7/Scraptown | Visited Cave Peace 1588 | -7/Scraptown | Visited Assassins FH 1639 | -7/Scraptown | Visited Abandonware Association 1654 | -7/Scraptown | Learned abandonware demo "HACKBUD.EXE" 1654 | -7/Scraptown | Learned abandonware demo "POISON.EXE" 1686 | -7/Scraptown | Visited A0-MCA Data Center 1693 | -7/Scraptown | Given an A rating by A0-MCA 1698 | -7/Scraptown | Found A0-MCA's Component Scanner 1746 | -7/Scraptown | Visited Junk Cannon Lab 1978 | -7/Scraptown | Visited Supply Room 2014 | -7/Scraptown | Visited Scrapoid Pod Storage 2020 | -7/Scraptown | Found Scrapoid Pod 2120 | -7/Scraptown | Visited Infowarlord's Domain 2129 | -7/Scraptown | Found Spectral Analyzer 2227 | -7/Scraptown | Discovered new exit (range 3) 2283 | -7/Scraptown | Visited Derelict Rescue Squad 2294 | -7/Scraptown | Found DRS Beacon 2364 | -7/Scraptown | Visited Research Penetration Think Tank 2398 | -7/Scraptown | Visited LU-1G1's Boring Crew 2622 | -7/Scraptown | Visited Junk Repository 2780 | -7/Scraptown | Entered Factory 2780 | -5/Factory | Evolved 10 slots: Propulsion x4, Utility x3, Weapon x3 2881 | -5/Factory | Discovered new exit (range 15) 3093 | -5/Factory | Build established: Derelict-Tank 3810 | -5/Factory | Discovered new exit (range 6) 3891 | -5/Factory | Build established: Tank 4337 | -5/Factory | Sucked down chute 4337 | -5/Factory | Entered Waste 4352 | -5/Waste | EMP discharged 4352 | -5/Waste | System corruption reached 10% 4383 | -5/Waste | Spotted C-40 Crusher 4383 | -5/Waste | Spotted C-40 Crusher 4392 | -5/Waste | Crushed by Compactor (1 part destroyed, 2 dropped) 4392 | -5/Waste | Spotted C-40 Crusher 4395 | -5/Waste | Crushed by Compactor (1 part destroyed, 2 dropped) 4398 | -5/Waste | Crushed by Compactor (1 part destroyed, 2 dropped) 4405 | -5/Waste | Spotted C-40 Crusher 4408 | -5/Waste | Spotted C-40 Crusher 4409 | -5/Waste | Spotted C-40 Crusher 4414 | -5/Waste | Crushed by Compactor (1 part destroyed, 1 dropped) 4417 | -5/Waste | Crushed by Compactor (0 parts destroyed, 1 dropped) 4440 | -5/Waste | Discovered new exit (range 16) 4445 | -5/Waste | Lost 4 parts (1p3w) 4452 | -5/Waste | EMP discharged 4455 | -5/Waste | Entered Factory 4690 | -5/Factory | Build established: Mutant 5237 | -5/Factory | Build established: Tank 5394 | -5/Factory | Lost 4 parts (1p1n2u) 5437 | -5/Factory | Spotted B-75 Beast 5587 | -5/Factory | Core integrity fell below 50% 5674 | -5/Factory | Core integrity fell below 20% 5690 | -5/Factory | Destroyed by P-70 Sage with High-powered Shock Rifle Last Messages --------------- 05667_ Knocked back. 05668_ Acquired 4 matter. 05669_ M-28 Smith repairs Imp. Cooling System. 05670_ Dropped Hcp. Storage Unit. 05671_ Acquired 5 matter. 05671_ M-28 Smith repairs Med. Reflective Plating. 05672_ P-70 Sage resets B-75 Beast, system corruption cleaned. 05673_ System corrupted: IFF burst signal emitted. 05673_ Arm. Huge Wheel destroyed. 05673_ Dropped Adv. ECM Suite. 05674_ Acquired Spectral Analyzer. 05675_ Acquired 6 matter. 05675_ M-28 Smith repairs Magnetic Acceleration Cannon. 05677_ U-05 Engineer builds a Wall. 05680_ Acquired 6 matter. 05682_ Acquired 2 matter. 05683_ M-28 Smith repairs Med. Reflective Plating. 05684_ P-70 Sage resets B-75 Beast, system corruption cleaned. 05684_ Acquired 5 matter. 05688_ System corrupted: Matter fused (-8). Map ----- +----------------------------------------------------+ | ????????????????# !!% [ + """ | | ????????????????# """"" """"" !! # / """ | | ????????????????# """" """"" !! # | | ????????????????# "" """ # | | ????????????????# # | | ????????????????# """" "" " """ # | | ????????????????# """"" """"" """" ######## | | ????????????????# """ """^ """ ^ #??????? | | ????????????????# ######## | | ??????????????### """"" """"" """"" | | ??????????????# """"" """"" """"" | | ??????????????# """ """ """ | | ????????????????# | | ????????????????# | | ????????????????# ## | | ????????????????# #? | | ????????????????# ###"""T"""######### #? | | ????????????????# ###########???????? #? | | ????????????????# #??????????????????? #? | | ??????########### #???????????????????? #? | | ??????# #?????????????????????#? | | ??????# #??????????????????????? | | ??????# k ###########T #?????????? | | ??????# ????????? | | ??????# ????????? | | ??????# % p @ ????????? | | ?????## p ###############?????????? | | ?????## % ############???????????????????????? | | ?????## ##?????????????????????????????????? | | ?????## #############??????????????????????? | | ?????## #############??????????????????????? | | ?????## & %! ##??????????????????????? | | ?????## %!!!! ##??????????????????????? | | ?????## % ! ##??????????????????????? | | ?????## %! ##??????????????????????? | | ?????## ##??????????????????????? | | ?????## ##??????????????????????? | | ?????## " #?????????????????????? | | ?????####"#"################?????????????????????? | | ?????######################??????????????????????? | | ?????????????????????????????????????????????????? | | ?????????????????????????????????????????????????? | | ?????????????????????????????????????????????????? | | ?????????????????????????????????????????????????? | | ?????????????????????????????????????????????????? | | ?????????????????????????????????????????????????? | | ?????????????????????????????????????????????????? | | ?????????????????????????????????????????????????? | | ?????????????????????????????????????????????????? | | ?????????????????????????????????????????????????? | +----------------------------------------------------+ Best States ------------- Heat Dissipation 67 Energy Generation 19 Energy Capacity 315 Matter Stores 300 Matter Capacity 300 Sight Range 16 Terrain Scan Density 10 Jamming Range 14 Armor Coverage 225 Resistance: KI 25 Phase Shifting 5 Evasion (%) 55 Targeting Accuracy 8 Recoil Reduction 6 Item Schematics ----------------- None Robot Schematics ------------------ None Fabricated ------------ Nothing Repaired ---------- Nothing Alien Tech Used ----------------- None Achievements -------------- None Challenges ------------ None Game ------ Seed CannonStructuralMount Manual? 0 Play Time 02:10:17 Cumulative 301.2 hours Start 2024.11.17 @ 03:25:06 End 2024.11.20 @ 06:41:44 Sessions 3 Manual Loads 0 Difficulty Rogue Special Mode None Game No. 188 Rogue 171 Adventurer 11 Explorer 6 Win Type - Total 4 Types 4/0/0/0/0/0/0/0/0 Lore% 46 Gallery% 61 Achievement% 51 Wizard Run 0 Options --------- Layout 0 ASCII 0 Keyboard 0 Movement Numpad Keybinds 0 Fullscreen 2 Font 24/Smallcaps Map View 113x50 Zoom Use 0% Tactical HUD 1 Map Filters NONE Filters NONE Steam 1 RUN: ade5f337-84e0-46c6-99e8-ed94979ade25